Cogmind - Beta 13 X1 @@@ ROGUE MODE // 2023.08.28 @ 22:56:07 Player: Jezoensis Result: Self-destructed Performance ------------- Evolutions (2) 1000 Regions Visited (3) 600 Robots Destroyed (14) 70 Value Destroyed (376) 376 Prototype IDs (0) 0 Alien Tech Used (0) 0 Bonus (0) 0 TOTAL SCORE: 2046 Bonus ------- None Cogmind --------- Core Integrity 550/550 Matter 258/300 Energy 200/200 System Corruption 0% Temperature Cool (0) Movement Rolling (95) Ox1 Location -8/Materials Parts ------- > --- POWER (1) -------- Subdweller Power Source > --- PROPULSION (3) --- Wheel Wheel > --- UTILITY (4) ------ Large Storage Unit Structural Scanner > --- WEAPON (3) ------- Particle Cannon Subdweller Beam Cannon > --- INVENTORY (15) --- Ion Engine Light Treads Compact Wheel Improved Heat Sink High-capacity Storage Unit Subdweller Optics Subdweller Optics Terrain Scan Processor Subdweller Laser Particle Cannon Particle Cannon Particle Cannon Assault Rifle Light Assault Rifle Mining Laser Peak State ------------ > --- POWER ------------ Subdweller Power Source > --- PROPULSION ------- Wheel Subdweller Monowheel > --- UTILITY ---------- Improved Heat Sink Large Storage Unit > --- WEAPON ----------- Particle Cannon Subdweller Beam Cannon > --- INVENTORY -------- Ion Engine Light Treads Wheel Compact Wheel Medium Storage Unit High-capacity Storage Unit Structural Scanner Terrain Scan Processor Subdweller Laser Particle Cannon Particle Cannon Particle Cannon Assault Rifle Light Assault Rifle Mining Laser [Rating: 15] Favorites ----------- Power Ion Engine Engine Ion Engine Propulsion Wheel Treads Light Treads Wheel Wheel Utility Structural Scanner Device Structural Scanner Storage Large Storage Unit Processor Targeting Computer Weapon Assault Rifle Energy Gun Small Laser Energy Cannon Particle Cannon Ballistic Gun Assault Rifle Special Weapon Mining Laser Build | -11 -10 -10 -8 ------- Run | Jun Mat Sub Mat Slots Evolved 4 | . . . 4 Power . | . . . . Propulsion 1 | . . . 1 Utility 2 | . . . 2 Weapon 1 | . . . 1 Parts Attached 46 | 7 23 16 . Power 6 | 1 3 2 . Engine 6 | 1 3 2 . Core . | . . . . Reactor . | . . . . Propulsion 19 | 3 10 6 . Treads 7 | . 5 2 . Leg . | . . . . Wheel 12 | 3 5 4 . Hover . | . . . . Flight . | . . . . Utility 9 | 1 4 4 . Device 5 | . 1 4 . Storage 3 | 1 2 . . Processor 1 | . 1 . . Hackware . | . . . . Protection . | . . . . Artifact . | . . . . Weapon 12 | 2 6 4 . Energy Gun 3 | 1 2 . . Energy Cannon 3 | . 1 2 . Ballistic Gun 2 | 1 . 1 . Ballistic Cannon . | . . . . Launcher . | . . . . Special Weapon 4 | . 3 1 . Impact Weapon . | . . . . Slashing Weapon . | . . . . Piercing Weapon . | . . . . Special Melee Weapon . | . . . . Unidentified Prototypes . | . . . . Parts Lost . | . . . . Power . | . . . . Propulsion . | . . . . Utility . | . . . . Weapon . | . . . . Highest Loss Streak . | . . . . To Critical Strikes . | . . . . Average Slot Usage (%) 99 | . 99 99 . Engine 14 | . 14 14 . Treads 2 | . 3 1 . Wheel 25 | . 24 26 . Device 13 | . 13 14 . Storage 14 | . 14 14 . Energy Gun 6 | . 9 . . Energy Cannon 10 | . 3 22 . Ballistic Gun 8 | . 11 3 . Special Weapon 2 | . 3 2 . Naked Turns . | . . . . Heaviest Build 38 | 13 32 38 . Greatest Support 30 | 20 20 30 . Greatest Overweight (x) 3 | . 1 3 . Average Overweight (x) . | . . 1 . Largest Inventory Capacity 15 | 8 15 15 . Average Capacity 11 | 6 10 15 . Most Carried 15 | 6 12 15 . Average Carried 9 | 4 8 12 . Final Capacity 15 | 8 15 15 15 Final Carried 15 | 6 12 15 15 Class Distribution -------------------- 100% | Mutant Dominant Class ---------------- Mutant | -10/Materials Mutant | -10/Subcaves Mutant | -8/Materials Resources | -11 -10 -10 -8 ----------- Run | Jun Mat Sub Mat Matter Collected 714 | 291 294 129 . Remotely . | . . . . Salvage Created 489 | 26 334 129 . Parts 32 | 3 19 10 . Haulers Intercepted 1 | . 1 . . Recyclers Shooed 1 | 1 . . . Parts Field Recycled . | . . . . Retrieved Matter . | . . . . Parts Self-Destructed 4 | . . 4 . Prevented . | . . . . Kills | -11 -10 -10 -8 ------- Run | Jun Mat Sub Mat Combat Hostiles Destroyed 12 | . 9 3 . Guns 10 | . 9 1 . Cannons 2 | . . 2 . Classes Destroyed 5 | 1 3 1 . Tunneler 1 | 1 . . . Hauler 1 | . 1 . . Swarmer 3 | . 3 . . Grunt 6 | . 6 . . Subdweller 3 | . . 3 . Best Kill Streak 4 | 1 4 2 . Combat Bots Only 4 | . 4 2 . Max Kills in Single Turn 2 | 1 2 1 . Gunslinging 1 | . 1 . . Exploded . | . . . . Melee . | . . . . Uniques/NPCs Destroyed . | . . . . Combat | -11 -10 -10 -8 -------- Run | Jun Mat Sub Mat Damage Taken 587 | . 338 249 . Core 100 | . 33 67 . Absorbed by Shields . | . . . . Core Remaining (%) 80 | 100 . 60 . Volleys Fired 46 | 9 28 9 . Largest 2 | 2 2 2 . Hottest 148 | 60 100 148 . Shots Fired 83 | 18 50 15 . Gun 63 | 18 44 1 . Cannon 13 | . . 13 . Launcher . | . . . . Special 7 | . 6 1 . Kinetic 32 | 9 22 1 . Thermal 51 | 9 28 14 . Explosive . | . . . . Electromagnetic . | . . . . Robot Hit Streak 19 | 3 8 19 . Robot Miss Streak 3 | 3 1 . . Penetration Max . | . . . . Secondary Targets 2 | . 2 . . Max Gunslinging Chain 1 | . 1 . . Shots Hit Robots 55 | 10 34 11 . Core Hits 21 | 1 15 5 . Critical Kills 1 | . 1 . . Critical Parts Destroyed 1 | . 1 . . Critical Strikes 2 | . 2 . . Destroy 2 | . 2 . . Melee Attacks . | . . . . Impact . | . . . . Slashing . | . . . . Piercing . | . . . . Sneak Attacks . | . . . . Combat Hostiles . | . . . . Follow-up Attacks . | . . . . Damage Inflicted 762 | 129 427 206 . Guns 571 | 129 427 15 . Cannons 191 | . . 191 . Explosions . | . . . . Melee . | . . . . Ramming . | . . . . Kinetic 328 | 83 230 15 . Thermal 434 | 46 197 191 . Explosive . | . . . . Electromagnetic . | . . . . Impact . | . . . . Slashing . | . . . . Piercing . | . . . . Highest Corruption . | . . . . Average Corruption . | . . . . Corruption Purged . | . . . . Corruption Blocked . | . . . . Overload Shots . | . . . . Overflow Damage . | . . . . Projectiles . | . . . . Explosions . | . . . . Melee . | . . . . Knockbacks . | . . . . Impact . | . . . . Kinetic . | . . . . Secondary . | . . . . Self-Inflicted Damage . | . . . . Shots . | . . . . Rammed . | . . . . Targets Rammed . | . . . . Kicked . | . . . . Crushed . | . . . . Highest Temperature 96 | . 96 . . Average Temperature 33 | . 33 . . Received Heat Transfer 204 | . 156 48 . Siege Activations . | . . . . Robots Corrupted . | . . . . Combat Hostiles . | . . . . Parts Fried . | . . . . Impact Corruptions . | . . . . Robots Melted . | . . . . Combat Hostiles . | . . . . Parts Melted 1 | . . 1 . Heat Transferred 858 | 100 425 333 . Parts Sabotaged . | . . . . Parts Stolen . | . . . . Parts Stripped . | . . . . Power Chain Reactions . | . . . . Missiles Intercepted . | . . . . Alert | -11 -10 -10 -8 ------- Run | Jun Mat Sub Mat Peak Influence 328 | 5 328 . . Initial 59 | . 3 . 59 Average 160 | 2 181 . . Maximum Alert Level 1 | . 1 . . Low Security (%) 56 | 100 51 . . Level 1 43 | . 48 . . Level 2 . | . . . . Level 3 . | . . . . Level 4 . | . . . . Level 5 . | . . . . High Security . | . . . . Max Security . | . . . . Squads Dispatched 5 | . 5 . . Investigation 5 | . 5 . . Extermination . | . . . . Reinforcement . | . . . . Assault . | . . . . Garrison . | . . . . Intercept . | . . . . Searches Triggered . | . . . . Construction Impeded . | . . . . Haulers Reinforced . | . . . . Active Scanning Responses . | . . . . Cargo Convoy Interrupts . | . . . . Stealth | -11 -10 -10 -8 --------- Run | Jun Mat Sub Mat Distress Signals 2 | . 2 . . Communications Jammed . | . . . . Distress Signals . | . . . . Times Spotted 21 | . 18 3 . Peak Tracking Total 4 | . 4 2 . Tactical Retreats 2 | . 2 . . Traps | -11 -10 -10 -8 ------- Run | Jun Mat Sub Mat Traps Triggered 2 | . 2 . . Indirectly . | . . . . Trap Hack Attempts . | . . . . Triggered . | . . . . Disarmed . | . . . . Reprogrammed . | . . . . Reused . | . . . . Traps Extracted . | . . . . Installed . | . . . . Triggered . | . . . . Machines | -11 -10 -10 -8 ---------- Run | Jun Mat Sub Mat Machines Disabled . | . . . . Max in Single Turn . | . . . . Machines Repaired . | . . . . Machines Sabotaged . | . . . . Overloaded Fab Kills . | . . . . Hacking | -11 -10 -10 -8 --------- Run | Jun Mat Sub Mat Machines Accessed 5 | . 5 . . Terminals 3 | . 3 . . Fabricators . | . . . . Repair Stations . | . . . . Recycling Units 2 | . 2 . . Scanalyzers . | . . . . Garrison Access . | . . . . Total Hacks 13 | . 13 . . Successful 7 | . 7 . . Failed 6 | . 6 . . Catastrophic . | . . . . Database Lockouts . | . . . . Manual 13 | . 13 . . Terminals 11 | . 11 . . Fabricators . | . . . . Repair Stations . | . . . . Recycling Units 2 | . 2 . . Scanalyzers . | . . . . Garrison Access . | . . . . Terminal Hacks 4 | . 4 . . Robot Analysis 4 | . 4 . . Fabricator Hacks . | . . . . Repair Station Hacks . | . . . . Recycling Unit Hacks . | . . . . Scanalyzer . | . . . . Garrison Access Hacks . | . . . . Unauthorized Hacks 3 | . 3 . . Terminals 1 | . 1 . . Botnet 1 | . 1 . . Fabricators . | . . . . Repair Stations . | . . . . Recycling Units 2 | . 2 . . Tunnel 2 | . 2 . . Scanalyzers . | . . . . Garrison Access . | . . . . Data Cores Recovered . | . . . . Used . | . . . . Hacking Detections 3 | . 3 . . Full Trace Events 1 | . 1 . . Feedback Events . | . . . . Feedback Blocked . | . . . . Robot Schematics Acquired . | . . . . Robots Built . | . . . . Authchips . | . . . . Time . | . . . . Total Robot Build Rating . | . . . . Part Schematics Acquired . | . . . . Parts Built . | . . . . Authchips . | . . . . Time . | . . . . Total Part Build Rating . | . . . . Parts Repaired . | . . . . Time . | . . . . Parts Recycled . | . . . . Recycled Matter . | . . . . Retrieved Matter . | . . . . Retrieved Components . | . . . . Parts Scanalyzed . | . . . . Part Schematics Acquired . | . . . . Parts Damaged . | . . . . Bothacking | -11 -10 -10 -8 ------------ Run | Jun Mat Sub Mat Used RIF Installer . | . . . . Robots Hacked . | . . . . Non-combat . | . . . . Combat . | . . . . Robot Hacks Applied . | . . . . Relay Couplers Released . | . . . . Fabnet Peak Effective % . | . . . . Robots Rewired . | . . . . Allies Hacked . | . . . . Hacks Repelled . | . . . . Allies | -11 -10 -10 -8 -------- Run | Jun Mat Sub Mat Total Allies . | . . . . Largest Group . | . . . . Highest-Rated Group . | . . . . Highest-Rated Ally . | . . . . Total Orders . | . . . . Ally Attacks . | . . . . Total Damage . | . . . . Kills . | . . . . Allies Corrupted . | . . . . Allies Melted . | . . . . Intel | -11 -10 -10 -8 ------- Run | Jun Mat Sub Mat Robot Analysis Total 4 | . 4 . . Derelict Logs Recovered 1 | . . 1 . Drone Launches . | . . . . Drone Recoveries . | . . . . Exploration | -11 -10 -10 -8 ------------- Run | Jun Mat Sub Mat Turns Passed 892 | 71 521 300 . Spaces Moved 727 | 39 440 248 . Core 15 | 15 . . . Treads . | . . . . Legs . | . . . . Wheels 712 | 24 440 248 . Hover . | . . . . Flight . | . . . . Fastest Speed 50 | 50 80 95 . Average Speed 87 | 68 84 95 . Slowest Speed 125 | 80 95 125 . Overloaded Moves . | . . . . Propulsion Burnouts . | . . . . Robots Hopped . | . . . . Cave-ins Triggered . | . . . . Exploration Rate (%) 23 | 4 64 26 1 Regions Visited 3 Branch Regions 1 Pre-discovered Areas 2 | . 2 . . Known Exits Taken . | . . . . Unknown Exits Taken 3 | 1 1 1 . Scrap Searched . | . . . . Spaces Dug 6 | . 6 . . Terrain Destroyed 6 | . 6 . . Melee . | . . . . Projectile 6 | . 6 . . AOE . | . . . . Terrain Rammed . | . . . . Walls Destroyed . | . . . . Machines Disabled . | . . . . Actions | -11 -10 -10 -8 --------- Run | Jun Mat Sub Mat Total 880 | 63 527 290 . Wait 16 | . 8 8 . Move 724 | 38 439 247 . Hop . | . . . . Pick Up 27 | 8 15 4 . Fast Attach 9 | 4 2 3 . Attach 4 | 2 1 1 . Detach 4 | . 2 2 . Swap 33 | 1 20 12 . Drop 17 | 1 12 4 . Fire 46 | 9 28 9 . Melee . | . . . . Ram . | . . . . Kick . | . . . . Crush . | . . . . Escape Stasis . | . . . . Rewire . | . . . . Trap . | . . . . Miscellaneous . | . . . . Route ------- -11/Junkyard -10/Materials (discovered 4 exits: [*Mat x2] / [*Min] / [*Sub]) -10/Subcaves -8/Materials History --------- Turn | Location | Event 23 | -11/Junkyard | Discovered new exit (range 15) 72 | -11/Junkyard | Entered Materials 228 | -10/Materials | Discovered new exit (range 16) 231 | -10/Materials | Discovered new exit (range 16) 322 | -10/Materials | Build established: Mutant 444 | -10/Materials | Discovered new exit (range 12) 486 | -10/Materials | Discovered new exit (range 14) 593 | -10/Materials | Entered Subcaves 796 | -10/Subcaves | Ambushed by Subdwellers from Twisted Machinery 855 | -10/Subcaves | Learned Materials security intel 883 | -10/Subcaves | Discovered new exit (range 10) 893 | -10/Subcaves | Entered Materials 893 | -8/Materials | Evolved 4 slots: Propulsion x1, Utility x2, Weapon x1 893 | -8/Materials | Self-destructed Last Messages --------------- 00799_ DF-40D(R) destroyed. 00803_ Acquired Sub. Beam Cannon. 00805_ Sub. Power Source melted. 00805_ V2-KVK(R) destroyed. 00810_ Acquired Sub. Laser. 00815_ Dropped Sub. Power Source. 00815_ Acquired Sub. Monowheel. 00818_ Acquired Sub. Power Source. 00819_ Dropped Sub. Monowheel. 00825_ Acquired Sub. Optics. 00827_ Acquired 34 matter. 00829_ Dropped Med. Storage Unit. 00830_ Acquired Sub. Optics. 00833_ Acquired 37 matter. 00855_ Acquired derelict log, extracted data. Data stored: Materials security intel. 00883_ EXIT=FOUND PARAMETERS=PROPULSION+1,UTILITY+2,WEAPON+1 LOCATION=UNKNOWN GOAL=ESCAPE Map ----- +----------------------------------------------------+ | ??????????????????????????????????????? | | ??????????????????????????????????????? | | ??????????????????????????????????????? | | ??????????????????????????????????????? | | ??????????????????????????????????????? | | ??????????????????????????????????????? | | ??????????????????????????????????????? | | ??????????????????????????????????????? | | ??????????????????????????????????????? | | ??????????????????????????????????????? | | ??????????????????????????????????????? | | ??????????????????????????????????????? | | ??????????????????????????????????????? | | ??????????????????????????????????????? | | ??????????????????????????????????????? | | ??????????????????????????????????????? | | ??????????????????????????????????????? | | ??????????????????????????????????????? | | ??????????????????????????????????????? | | ??????????????????????????????????????? | | ??????????????????????????????????????? | | ??????????????????????????????????????? | | ????????????#################?????????? | | ????????????#################?????????? | | ?????????? ##?????????? | | ?????????? @ ##?????????? | | ?????????? ##?????????? | | ????????????####+######+#####?????????? | | ???????????? # # ##?????????? | | ??????????????????????????????????????? | | ??????????????????????????????????????? | | ??????????????????????????????????????? | | ??????????????????????????????????????? | | ??????????????????????????????????????? | | ??????????????????????????????????????? | | ??????????????????????????????????????? | | ??????????????????????????????????????? | | ??????????????????????????????????????? | | ??????????????????????????????????????? | | | | | | | | | | | | | | | | | | | | | | | +----------------------------------------------------+ Best States ------------- Heat Dissipation 39 Energy Generation 15 Energy Capacity 250 Matter Stores 300 Matter Capacity 300 Sight Range 16 Terrain Scan Density 10 Evasion (%) 50 Targeting Accuracy 5 Recoil Reduction 2 Item Schematics ----------------- None Robot Schematics ------------------ None Fabricated ------------ Nothing Alien Tech Used ----------------- None Achievements -------------- None Challenges ------------ None Game ------ Seed HybridImprinterScythe Manual? 0 Play Time 00:14:43 Cumulative 971.2 hours Start 2023.08.28 @ 22:41:02 End 2023.08.28 @ 22:56:07 Sessions 1 Manual Loads 0 Difficulty Rogue Special Mode None Game No. 503 Rogue 376 Adventurer 125 Explorer 2 Win Type - Total 114 Types 89/9/8/2/3/0/0/2/1 Lore% 82 Gallery% 89 Achievement% 83 Wizard Run 0 Options --------- ASCII 0 Keyboard 1 Movement Numpad Keybinds 0 Fullscreen 1 Font 36/TerminusFine Map View 83x50 Tactical HUD 1 Map Filters NONE Filters NONE Steam 1 RUN: 308ad7a3-5e57-4c90-b982-2a6b38533fcc